bitfinex-derivatives/quotes_BTCF0:USTF0_20250325
["timestamp","ask_amount","ask_price","bid_price","bid_amount"]
[1742893405201,0.0576038,86799.0,86798.0,0.24273532]
[1742893405397,0.0576038,86799.0,86798.0,0.24473532]
[1742893405593,0.05864381,86799.0,86798.0,0.24473532]
[1742893405794,0.09104381,86799.0,86798.0,0.24473532]
[1742893405991,0.09104381,86799.0,86798.0,0.24673532]
[1742893406191,0.09104381,86799.0,86798.0,0.27813532]
[1742893406395,0.09104381,86799.0,86798.0,0.31053532]
[1742893406596,0.09104381,86799.0,86798.0,0.27913532]
[1742893406803,0.09104381,86799.0,86798.0,0.24673532]
[1742893407900,0.0324,86799.0,86798.0,0.25537198]
[1742893408203,0.0324,86799.0,86798.0,0.32067198]
[1742893408497,0.03344001,86799.0,86798.0,0.33067198]
[1742893408704,0.03344001,86799.0,86798.0,0.36097198]
[1742893409202,0.03344001,86799.0,86798.0,1.86097198]
[1742893409505,0.0324,86799.0,86798.0,1.86097198]
[1742893410297,0.0324,86799.0,86798.0,0.36097198]
[1742893410804,0.0324,86799.0,86798.0,1.86097198]
[1742893411503,0.03115,86799.0,86798.0,1.86097198]
[1742893412604,0.03115,86799.0,86798.0,0.36097198]
[1742893414394,0.03115,86799.0,86798.0,0.33067198]
[1742893414600,0.03115,86799.0,86798.0,0.26537198]
[1742893415104,0.03115,86799.0,86798.0,0.29647198]
[1742893415905,0.03115,86799.0,86798.0,0.32797198]
[1742893420109,0.1463563,86799.0,86798.0,0.0046]
[1742893420303,0.14739631,86799.0,86798.0,0.0046]
[1742893420509,0.17929631,86799.0,86798.0,0.0046]
[1742893421009,0.17929631,86799.0,86798.0,0.01649542]
[1742893421203,0.17929631,86799.0,86798.0,0.12970312]
[1742893421811,0.17929631,86799.0,86798.0,0.12770312]
[1742893424510,0.06409001,86799.0,86798.0,0.48850312]
[1742893425210,0.17929631,86799.0,86798.0,0.48850312]
[1742893425803,0.17929631,86799.0,86798.0,0.12770312]
[1742893426710,0.17929631,86799.0,86798.0,0.12870312]
[1742893428309,0.17929631,86799.0,86798.0,0.12770312]
[1742893428713,0.17929631,86799.0,86798.0,0.1158077]
[1742893429406,0.17929631,86799.0,86798.0,0.0006]
[1742893429616,0.1728169,86796.0,86795.0,0.1152107]
[1742893429809,0.17385691,86796.0,86795.0,0.1158107]
[1742893431215,0.17385691,86796.0,86795.0,0.1168107]
[1742893434420,0.17385691,86796.0,86795.0,0.1178107]
[1742893439521,0.17385691,86796.0,86795.0,0.0026]
[1742893439720,0.17385691,86796.0,86795.0,1e-08]
[1742893442719,0.1854145,86796.0,86795.0,1e-08]
[1742893443526,0.28553691,86796.0,86795.0,1e-08]
[1742893443711,0.28553691,86796.0,86795.0,0.00120001]
[1742893444115,0.28553691,86796.0,86795.0,1e-08]
[1742893444818,0.34893691,86796.0,86795.0,1e-08]
[1742893445021,0.34893691,86796.0,86795.0,0.00068001]
[1742893445222,0.36093682,86796.0,86795.0,0.00068001]
[1742893445423,0.34893691,86796.0,86795.0,0.00068001]
[1742893445622,0.34893691,86796.0,86795.0,1e-08]
[1742893446129,0.34893691,86796.0,86795.0,0.00060001]
[1742893446316,0.34893691,86796.0,86795.0,1e-08]
[1742893446518,0.34893691,86796.0,86795.0,0.00060001]
[1742893446917,0.34893691,86796.0,86795.0,1e-08]
[1742893448621,0.31813691,86796.0,86795.0,1e-08]
[1742893456932,0.67893691,86796.0,86795.0,1e-08]
[1742893458827,0.71183691,86796.0,86795.0,1e-08]
[1742893462334,0.71135691,86796.0,86795.0,1e-08]
[1742893464138,0.60015691,86796.0,86795.0,1e-08]
[1742893464433,0.71127691,86796.0,86795.0,1e-08]
[1742893467032,0.35047691,86796.0,86795.0,1e-08]
[1742893467229,0.35047691,86796.0,86795.0,0.00060001]
[1742893467626,0.35047691,86796.0,86795.0,0.06190001]
[1742893468731,0.17385691,86796.0,86795.0,0.17711171]
[1742893473236,0.53465691,86796.0,86795.0,0.06190001]
[1742893473541,0.1152183,86790.0,86789.0,0.00017285]
[1742893473739,0.1166583,86790.0,86789.0,0.00017285]
[1742893474040,0.1787583,86790.0,86789.0,0.00017285]
[1742893474640,0.1787583,86790.0,86789.0,0.11599245]
[1742893475941,0.1787583,86790.0,86789.0,0.11799245]
[1742893476340,0.1787583,86790.0,86789.0,0.11999245]
[1742893476638,0.1787583,86790.0,86789.0,0.18259245]
[1742893477543,0.1787583,86790.0,86789.0,0.00477285]
[1742893477740,0.1787583,86790.0,86789.0,0.00417285]
[1742893477944,0.1787583,86790.0,86789.0,0.11999245]
[1742893478240,0.1787583,86790.0,86789.0,0.00477285]
[1742893478653,0.1787583,86790.0,86789.0,0.06737285]
[1742893483653,0.2898783,86790.0,86789.0,0.18259245]
[1742893484355,0.2898783,86790.0,86789.0,0.06737285]
[1742893484555,0.2898783,86790.0,86789.0,0.06677285]
[1742893484858,0.2898783,86790.0,86789.0,0.18259245]
[1742893487663,0.1166583,86790.0,86789.0,0.18259245]
[1742893488066,0.1499583,86790.0,86789.0,0.18259245]
[1742893488357,0.1807583,86790.0,86789.0,0.18259245]
[1742893491765,0.00838,86791.0,86790.0,0.1152183]
[1742893491958,0.0652,86795.0,86794.0,0.115213]
[1742893492160,0.0652,86795.0,86794.0,0.211013]
[1742893492371,8e-05,86806.0,86805.0,0.1151984]
[1742893492552,0.00072,86806.0,86805.0,0.2127984]
[1742893492963,0.2068218,86806.0,86805.0,0.2127984]
[1742893493768,0.2397218,86806.0,86805.0,0.2127984]
[1742893494164,0.2407218,86806.0,86805.0,0.2127984]
[1742893494462,0.2407218,86806.0,86805.0,0.22422637]
[1742893496469,0.3519618,86806.0,86805.0,0.22422637]
[1742893497962,0.3519618,86806.0,86805.0,0.19272637]
[1742893498467,0.3519618,86806.0,86805.0,0.12722637]
[1742893500963,0.2367593,86806.0,86805.0,0.12722637]
[1742893501164,0.2943571,86806.0,86805.0,0.12722637]
[1742893501371,0.2943571,86806.0,86805.0,0.19212637]
[1742893501766,0.2943571,86806.0,86805.0,0.12722637]
[1742893502372,0.2943571,86806.0,86805.0,0.0006]
[1742893502869,0.1728009,86805.0,86802.0,0.1728022]
[1742893503070,0.1734409,86805.0,86804.0,0.1151985]
[1742893503263,0.2065409,86805.0,86804.0,0.1158385]
[1742893503468,0.03374,86805.0,86804.0,0.1158385]
[1742893503665,0.1489384,86805.0,86804.0,0.2103385]
[1742893503862,0.1489384,86805.0,86804.0,0.22228039]
[1742893504067,0.1499384,86805.0,86804.0,0.22228039]
[1742893504269,0.1509384,86805.0,86804.0,0.22228039]
[1742893505173,0.1509384,86805.0,86804.0,0.19098039]
[1742893505374,0.1509384,86805.0,86804.0,0.12778039]
[1742893511970,0.00254896,86813.0,86809.0,0.057596]
[1742893512179,0.00326896,86813.0,86812.0,0.4759891]
[1742893512480,0.00254896,86813.0,86812.0,0.5397091]
[1742893513383,0.00554896,86813.0,86812.0,0.5397091]
[1742893513975,0.12073676,86813.0,86812.0,0.5397091]
[1742893514183,0.12145676,86813.0,86812.0,0.5397091]
[1742893514587,0.15315676,86813.0,86812.0,0.5397091]
[1742893515271,0.18625676,86813.0,86812.0,0.5397091]
[1742893521584,0.18625676,86813.0,86812.0,0.5087091]
[1742893522786,0.18625676,86813.0,86812.0,0.00072]
[1742893522991,0.1151957,86807.0,86806.0,0.1151966]
[1742893523179,0.1159157,86807.0,86806.0,0.1159166]
[1742893523381,0.2101157,86807.0,86806.0,0.1159166]
[1742893523783,0.2101157,86807.0,86806.0,0.1151966]
[1742893524387,0.2101157,86807.0,86806.0,0.1159566]
[1742893524692,0.2121157,86807.0,86806.0,0.1159566]
[1742893530992,0.2121157,86807.0,86806.0,0.00076]
[1742893531697,0.115209,86797.0,86796.0,0.5230099]
[1742893531885,0.115209,86797.0,86796.0,0.5237299]
[1742893532079,0.206709,86797.0,86796.0,0.5237299]
[1742893532283,0.207389,86797.0,86796.0,0.5237299]
[1742893532489,0.207389,86797.0,86796.0,0.53513958]
[1742893532790,0.207389,86797.0,86796.0,0.12733958]
[1742893532999,0.207389,86797.0,86796.0,0.00072]
[1742893534493,0.1152156,86792.0,86791.0,0.20499593]
[1742893534685,0.1152183,86790.0,86789.0,0.00017285]
[1742893534892,0.2278583,86790.0,86789.0,0.00017285]
[1742893535189,0.2930583,86790.0,86789.0,0.00017285]
[1742893536292,0.2930583,86790.0,86789.0,0.00077285]
[1742893536697,0.2930583,86790.0,86789.0,0.00277285]
[1742893537191,0.2930583,86790.0,86789.0,0.00477285]
[1742893539998,0.1152263,86784.0,86783.0,0.00046092]
[1742893540200,0.11610631,86784.0,86783.0,0.00106092]
[1742893540389,0.57520631,86784.0,86783.0,1e-08]
[1742893540595,0.57520631,86784.0,86776.0,0.00856112]
[1742893540596,0.1152342,86778.0,86776.0,0.00856112]
[1742893540901,0.11631421,86778.0,86777.0,0.3614]
[1742893541196,0.11631421,86778.0,86777.0,0.4246]
[1742893541985,0.11631421,86778.0,86777.0,0.5398356]
[1742893542209,0.11631421,86778.0,86777.0,0.5731356]
[1742893542393,0.18211421,86778.0,86777.0,0.5731356]
[1742893543203,0.18211421,86778.0,86777.0,0.5781356]
[1742893543406,0.18211421,86778.0,86777.0,0.58958634]
[1742893543788,0.18211421,86778.0,86777.0,0.59458634]
[1742893561109,0.14921421,86778.0,86777.0,0.59458634]
[1742893561917,0.18071421,86778.0,86777.0,0.59458634]
[1742893563014,1e-08,86779.0,86778.0,0.1152342]
[1742893563214,1e-08,86779.0,86778.0,0.2112342]
[1742893563516,0.0326,86783.0,86782.0,0.1152289]
[1742893563708,0.1152203,86789.0,86788.0,0.0576104]
[1742893563909,0.1485803,86789.0,86788.0,0.0582104]
[1742893564915,0.00076,86789.0,86788.0,0.0602104]
[1742893565117,0.0317,86792.0,86791.0,0.1728248]
[1742893565323,0.05777692,86798.0,86791.0,0.1728248]
[1742893565324,0.00017252,86798.0,86797.0,0.115209]
[1742893565620,0.00017252,86798.0,86797.0,0.486649]
[1742893565819,0.30882592,86812.0,86807.0,0.1151957]
[1742893566120,0.0317,86810.0,86807.0,0.1158757]
[1742893566324,0.00104,86808.0,86807.0,0.1158757]
[1742893566508,0.00104,86808.0,86807.0,0.12733686]
[1742893566709,0.03274,86808.0,86807.0,0.12733686]
[1742893567715,0.03474,86808.0,86807.0,0.12733686]
[1742893568020,0.03674,86808.0,86807.0,0.12733686]
[1742893568221,0.00504,86808.0,86807.0,0.13733686]
[1742893568812,0.0044,86808.0,86807.0,0.13733686]
[1742893570417,0.0044,86808.0,86807.0,0.54513686]
[1742893574220,0.0044,86808.0,86807.0,0.57723686]
[1742893574421,0.0375,86808.0,86807.0,0.57723686]
[1742893574620,0.0375,86808.0,86807.0,0.60973686]
[1742893577524,0.0375,86808.0,86807.0,1.33133686]
[1742893578020,0.0698,86808.0,86807.0,1.33133686]
[1742893578922,0.0698,86808.0,86807.0,1.36243686]
[1742893582122,0.0698,86808.0,86807.0,1.47343686]
[1742893582718,0.0375,86808.0,86807.0,1.47343686]
[1742893582923,0.0375,86808.0,86807.0,1.48343686]
[1742893585618,0.07,86808.0,86807.0,1.48343686]
[1742893586726,0.00646083,86808.0,86807.0,1.48343686]
[1742893586926,8e-05,86809.0,86808.0,0.1151944]
[1742893587233,0.00254896,86813.0,86812.0,0.1151891]
[1742893587416,0.00254896,86813.0,86812.0,0.1559091]
[1742893587615,0.00254896,86813.0,86812.0,0.1876091]
[1742893587822,0.00254896,86813.0,86812.0,0.2202091]
[1742893588625,0.00554896,86813.0,86812.0,0.2202091]
[1742893588824,0.00272752,86815.0,86814.0,0.1151864]
[1742893589026,0.00272752,86815.0,86814.0,0.5266264]
[1742893589027,0.11791262,86815.0,86814.0,0.5266264]
[1742893589328,0.00272752,86815.0,86814.0,0.5266264]
[1742893589916,0.06740752,86815.0,86814.0,0.5266264]
[1742893590120,0.06672752,86815.0,86814.0,0.5266264]
[1742893590821,0.06736752,86815.0,86814.0,0.4866264]
[1742893591333,0.18191262,86815.0,86814.0,0.4866264]
[1742893591817,0.18255262,86815.0,86814.0,0.4866264]
[1742893598830,0.18255262,86815.0,86814.0,0.4766264]
[1742893602934,0.18255262,86815.0,86814.0,0.1158264]
[1742893603124,0.18255262,86815.0,86814.0,0.4766264]
[1742893606229,0.18191262,86815.0,86814.0,0.4766264]
[1742893607923,0.18191262,86815.0,86814.0,0.4866264]
[1742893608532,0.18191262,86815.0,86814.0,0.5167264]
[1742893612139,0.18191262,86815.0,86814.0,0.5481264]
[1742893612341,0.18255262,86815.0,86814.0,0.5481264]
[1742893617947,0.18255262,86815.0,86814.0,0.5381264]
[1742893618648,0.18247262,86815.0,86814.0,0.5381264]
[1742893622738,0.18247262,86815.0,86814.0,0.42294]
[1742893622942,0.18247262,86815.0,86814.0,0.39154]
[1742893623142,0.1151891,86812.0,86811.0,0.20499593]
[1742893623343,0.1159891,86812.0,86811.0,0.20567593]
[1742893623556,0.2087891,86812.0,86811.0,0.20567593]
[1742893624247,0.5695891,86812.0,86811.0,0.20567593]
[1742893624439,0.5705891,86812.0,86811.0,0.20567593]
[1742893625751,0.6814691,86812.0,86811.0,0.20567593]
[1742893626257,0.6814691,86812.0,86811.0,0.00068]
[1742893626454,0.1151944,86808.0,86807.0,0.01139365]
[1742893626659,0.1159144,86808.0,86807.0,0.0006]
[1742893626964,0.1794144,86808.0,86807.0,0.0006]
[1742893628852,0.1804144,86808.0,86807.0,0.0006]
[1742893642863,0.0576032,86799.0,86786.0,0.4760232]
[1742893643056,0.115213,86794.0,86793.0,0.1462129]
[1742893643256,0.11609301,86794.0,86793.0,0.03164]
[1742893643460,0.17689301,86794.0,86793.0,0.00064]
[1742893645164,0.17689301,86794.0,86793.0,0.1776543]
[1742893645570,0.17689301,86794.0,86793.0,0.1796543]
[1742893645761,0.17689301,86794.0,86793.0,0.1816543]
[1742893646268,0.17689301,86794.0,86793.0,0.06644]
[1742893647764,0.53769301,86794.0,86793.0,0.06644]
[1742893648671,0.53769301,86794.0,86793.0,0.1816543]
[1742893648972,0.53769301,86794.0,86793.0,0.06644]
[1742893656572,0.54909721,86794.0,86793.0,0.004]
[1742893656778,0.1152249,86785.0,86784.0,0.0618]
[1742893656981,0.4769449,86785.0,86784.0,0.0618]
[1742893657370,0.5394449,86785.0,86784.0,0.0618]
[1742893657565,0.5394449,86785.0,86784.0,0.0309]
[1742893657987,0.5394449,86785.0,86784.0,0.06648]
[1742893659077,0.5394449,86785.0,86784.0,0.0658]
[1742893659278,0.5394449,86785.0,86784.0,0.0664]
[1742893659671,0.5394449,86785.0,86784.0,0.0704]
[1742893660073,0.5394449,86785.0,86784.0,0.0698]
[1742893660277,0.5394449,86785.0,86784.0,0.00892]
[1742893660481,0.0576155,86781.0,86777.0,0.0321]
[1742893660674,0.4760342,86778.0,86777.0,0.03278]
[1742893660873,0.0576191,86775.0,86772.0,0.01161912]
[1742893661074,0.1152409,86773.0,86772.0,0.01161912]
[1742893661582,0.1152462,86769.0,86768.0,0.1152472]
[1742893661880,0.5869662,86769.0,86768.0,0.1152472]
[1742893662079,0.6496662,86769.0,86768.0,0.1152472]
[1742893662294,0.1152475,86768.0,86767.0,0.12426514]
[1742893662681,0.1779475,86768.0,86767.0,0.13562722]
[1742893664180,0.1779475,86768.0,86767.0,0.16802722]
[1742893665279,0.1789475,86768.0,86767.0,0.17302722]
[1742893665877,0.1789475,86768.0,86767.0,0.17902722]
[1742893667278,0.5397475,86768.0,86767.0,0.17902722]
[1742893667479,0.54086751,86768.0,86767.0,0.17962722]
[1742893674390,0.18006751,86768.0,86767.0,0.17962722]
[1742893674689,0.54086751,86768.0,86767.0,0.17962722]
[1742893674891,0.54086751,86768.0,86767.0,0.21292722]
[1742893678581,0.18006751,86768.0,86767.0,0.21292722]
[1742893678783,0.54086751,86768.0,86767.0,0.21292722]
[1742893681883,0.53986751,86768.0,86767.0,0.21092722]
[1742893682293,0.53986751,86768.0,86767.0,0.010061]
[1742893682486,0.1152661,86754.0,86753.0,0.1456659]
[1742893682686,0.1152661,86754.0,86753.0,0.2972659]
[1742893682889,0.11646611,86754.0,86753.0,0.2972659]
[1742893683595,0.18106611,86754.0,86753.0,0.12920128]
[1742893683797,0.18106611,86754.0,86753.0,0.0126]
[1742893684195,0.18106611,86754.0,86753.0,0.012]
[1742893684404,0.1152741,86748.0,86747.0,0.20499593]
[1742893684705,0.58811411,86748.0,86747.0,0.20559593]
[1742893685303,0.65271411,86748.0,86747.0,0.20559593]
[1742893685597,0.66460177,86748.0,86747.0,0.20559593]
[1742893687800,0.65271411,86748.0,86747.0,0.20559593]
[1742893688399,0.65271411,86748.0,86747.0,0.0006]
[1742893688599,0.65271411,86748.0,86747.0,0.001]
[1742893689293,0.1152767,86746.0,86745.0,0.00017285]
[1742893689490,0.11639671,86746.0,86745.0,0.00017285]
[1742893689690,0.18049671,86746.0,86745.0,0.00017285]
[1742893691206,0.18049671,86746.0,86745.0,0.00077285]
[1742893691393,0.18049671,86746.0,86745.0,0.00017285]
[1742893692315,0.18049671,86746.0,86745.0,0.00077285]
[1742893692504,0.18049671,86746.0,86745.0,0.00017285]
[1742893693100,0.1152874,86738.0,86737.0,0.1152878]
[1742893693398,0.1152887,86737.0,86736.0,0.032]
[1742893693599,0.20878871,86737.0,86736.0,0.032]
[1742893693797,0.20878871,86737.0,86736.0,0.15867738]
[1742893694104,0.20878871,86737.0,86736.0,0.0006]
[1742893694405,0.11529,86736.0,86735.0,0.00046117]
[1742893694606,0.11649001,86736.0,86735.0,0.00106117]
[1742893694795,0.17729001,86736.0,86735.0,0.00046117]
[1742893694989,0.17729001,86736.0,86735.0,0.00106117]
[1742893695999,0.17729001,86736.0,86735.0,0.00046117]
[1742893696399,0.53809001,86736.0,86735.0,0.00046117]
[1742893697000,0.53809001,86736.0,86735.0,0.00110117]
[1742893697206,0.53809001,86736.0,86735.0,0.00046117]
[1742893698094,0.54969806,86736.0,86735.0,0.00046117]
[1742893701908,0.91049806,86736.0,86735.0,0.00046117]
[1742893706309,0.18889806,86736.0,86735.0,0.00046117]
[1742893706508,0.91049806,86736.0,86735.0,0.00046117]
[1742893713216,0.115298,86730.0,86729.0,0.0309]
[1742893713815,0.181958,86730.0,86729.0,0.0613]
[1742893714807,0.181958,86730.0,86729.0,0.0619]
[1742893715009,0.181958,86730.0,86729.0,0.0613]
[1742893717517,0.292958,86730.0,86729.0,0.0613]
[1742893718020,0.653758,86730.0,86729.0,0.0613]
[1742893718709,0.653758,86730.0,86729.0,0.0619]
[1742893721012,0.653758,86730.0,86729.0,0.0613]
[1742893723420,0.653758,86730.0,86729.0,0.0619]
[1742893724120,0.653758,86730.0,86729.0,0.0613]
[1742893727119,0.1152993,86729.0,86728.0,0.00017285]
[1742893727316,0.1484993,86729.0,86728.0,0.00017285]
[1742893727618,0.21161931,86729.0,86728.0,0.00017285]
[1742893729111,0.21161931,86729.0,86728.0,0.00077285]
[1742893729312,0.21161931,86729.0,86728.0,0.00017285]
[1742893731116,0.57241931,86729.0,86728.0,0.00017285]
[1742893732726,0.1153046,86725.0,86724.0,0.0647]
[1742893733025,0.11650461,86725.0,86724.0,0.0647]
[1742893733221,0.18150461,86725.0,86724.0,0.0647]
[1742893733426,0.1153113,86720.0,86719.0,0.00046126]
[1742893733615,0.5882713,86720.0,86719.0,0.00046126]
[1742893733816,0.6532713,86720.0,86719.0,0.00046126]
[1742893734711,0.6532713,86720.0,86719.0,0.00158126]
[1742893734917,0.6542713,86720.0,86719.0,0.00158126]
[1742893735627,0.6552713,86720.0,86719.0,0.00046126]
[1742893740228,0.6552713,86720.0,86716.0,0.0328]
[1742893740229,0.1153153,86717.0,86716.0,0.0328]
[1742893740425,0.11651531,86717.0,86716.0,0.0328]
[1742893740627,0.18071531,86717.0,86716.0,0.0328]
[1742893741237,0.1153219,86712.0,86711.0,0.00017295]
[1742893741441,0.51022191,86712.0,86711.0,0.00017295]
[1742893741627,0.54192191,86712.0,86711.0,0.03207295]
[1742893742526,0.54192191,86712.0,86711.0,0.00017295]
[1742893742727,0.1153273,86708.0,86705.0,8e-05]
[1742893742929,0.58824731,86708.0,86705.0,8e-05]
[1742893743230,0.65284731,86708.0,86705.0,8e-05]
[1742893743533,0.1153312,86705.0,86704.0,0.0313]
[1742893743730,0.1164912,86705.0,86704.0,0.03262]
[1742893743927,0.1810912,86705.0,86704.0,0.03146]
[1742893744131,0.1810912,86705.0,86704.0,0.00076]
[1742893744335,0.1153326,86704.0,86703.0,0.00046134]
[1742893744537,0.14755261,86704.0,86703.0,0.00046134]
[1742893744738,0.21155261,86704.0,86703.0,0.00062134]
[1742893745537,0.21155261,86704.0,86703.0,0.00046134]
[1742893748137,0.057663,86709.0,86703.0,0.00046134]
[1742893748138,0.0576487,86731.0,86721.0,0.0576545]
[1742893748341,0.1457073,86724.0,86723.0,0.1153073]
[1742893748641,0.1794473,86724.0,86723.0,0.1159073]
[1742893748938,0.5402473,86724.0,86723.0,0.0006]
[1742893749145,0.1729643,86722.0,86721.0,0.1153092]
[1742893749325,0.1153166,86716.0,86715.0,0.12690586]
[1742893749731,0.1793766,86716.0,86715.0,0.12750586]
[1742893753141,0.1793766,86716.0,86715.0,0.00071548]
[1742893753346,0.1793766,86716.0,86715.0,0.00011548]
[1742893753541,0.1793766,86716.0,86715.0,0.11607338]
[1742893753737,0.1793766,86716.0,86715.0,0.00075548]
[1742893754340,0.1793766,86716.0,86715.0,0.11607338]
[1742893755149,0.1793766,86716.0,86715.0,0.00075548]
[1742893755452,0.1793766,86716.0,86715.0,0.11543338]
[1742893755748,0.1793766,86716.0,86715.0,0.00011548]
[1742893756344,0.1793766,86716.0,86715.0,0.00071548]
[1742893756654,0.1793766,86716.0,86715.0,0.11603338]
[1742893756840,0.1793766,86716.0,86715.0,0.00071548]
[1742893757449,0.1793766,86716.0,86715.0,0.00011548]
[1742893757752,0.1793766,86716.0,86715.0,0.11543338]
[1742893758045,0.1793766,86716.0,86715.0,0.00011548]
[1742893758251,0.1793766,86716.0,86715.0,0.00075548]
[1742893758451,0.1793766,86716.0,86715.0,0.00011548]
[1742893768074,0.1153312,86705.0,86704.0,8e-05]
[1742893768381,0.1153326,86704.0,86703.0,0.00046134]
[1742893768569,0.5377926,86704.0,86703.0,0.00054134]
[1742893770474,0.5377926,86704.0,86703.0,0.00046134]
[1742893771381,0.5690926,86704.0,86703.0,0.00046134]
[1742893773682,0.6802526,86704.0,86703.0,0.00046134]
[1742893780675,0.5690926,86704.0,86703.0,0.00046134]
[1742893780883,0.6801326,86704.0,86703.0,0.00046134]
[1742893785091,0.42286,86704.0,86703.0,0.11579524]
[1742893785287,0.5381926,86704.0,86703.0,0.11659524]
[1742893795988,0.5381926,86704.0,86703.0,0.00106134]
[1742893796293,0.5710926,86704.0,86703.0,0.00106134]
[1742893796599,0.5710926,86704.0,86703.0,0.00046134]
[1742893796996,0.5710926,86704.0,86703.0,0.11639524]
[1742893800690,0.5710926,86704.0,86703.0,0.00106134]
[1742893801500,0.5710926,86704.0,86703.0,0.11639524]
[1742893801701,0.5710926,86704.0,86703.0,0.11579524]
[1742893802100,0.5710926,86704.0,86703.0,0.11639524]
[1742893802697,0.5710926,86704.0,86703.0,0.00106134]
[1742893803202,0.5710926,86704.0,86703.0,0.00046134]
[1742893804092,0.5710926,86704.0,86703.0,0.00106134]
[1742893805094,0.5710926,86704.0,86703.0,0.00046134]
[1742893805294,0.5710926,86704.0,86703.0,0.00114134]
[1742893805692,0.5710926,86704.0,86703.0,0.00046134]
[1742893806092,0.5710926,86704.0,86703.0,0.00106134]
[1742893806293,0.5710926,86704.0,86703.0,0.00046134]
[1742893806695,0.2102926,86704.0,86703.0,0.00046134]
[1742893806895,0.5710926,86704.0,86703.0,0.00126134]
[1742893807203,0.5710926,86704.0,86703.0,0.00046134]
[1742893808302,0.5710926,86704.0,86703.0,0.11579524]
[1742893808502,0.5710926,86704.0,86703.0,0.11639524]
[1742893809805,0.5710926,86704.0,86703.0,0.00106134]
[1742893810001,0.5710926,86704.0,86703.0,0.11639524]
[1742893810703,0.42286,86704.0,86703.0,0.11639524]
[1742893810899,0.06206,86704.0,86703.0,0.13659524]
[1742893811096,0.3608,86716.0,86715.0,0.1153179]
[1742893811296,0.5098566,86716.0,86715.0,0.1159579]
[1742893811496,0.36144,86716.0,86715.0,0.1474579]
[1742893811698,0.00064,86716.0,86715.0,0.1474579]
[1742893811904,0.115313,86719.0,86718.0,0.115314]
[1742893812105,0.11591301,86719.0,86718.0,0.115954]
[1742893812410,0.11591301,86719.0,86718.0,0.147454]
[1742893813094,0.11791301,86719.0,86718.0,0.147454]
[1742893813702,0.11591301,86719.0,86718.0,0.147454]
[1742893814004,0.11891301,86719.0,86718.0,0.147454]
[1742893814199,0.18001301,86719.0,86718.0,0.147454]
[1742893814600,0.17701301,86719.0,86718.0,0.147454]
[1742893814805,0.17801301,86719.0,86718.0,0.147454]
[1742893815710,0.17801301,86719.0,86718.0,0.15876643]
[1742893818307,0.06270001,86719.0,86718.0,0.15876643]
[1742893818507,0.06270001,86719.0,86718.0,0.18886643]
[1742893820613,0.17801261,86719.0,86718.0,0.18886643]
[1742893823113,0.17801261,86719.0,86718.0,0.12726643]
[1742893835421,0.06270001,86719.0,86718.0,0.12726643]
[1742893835923,0.3608,86742.0,86725.0,0.0576522]
[1742893836127,0.3608,86742.0,86734.0,0.1152927]
[1742893836128,0.0332,86735.0,86734.0,0.1152927]
[1742893836323,0.0332,86735.0,86734.0,0.1160927]
[1742893836525,0.03404,86735.0,86734.0,0.1160927]
[1742893838230,0.03404,86735.0,86734.0,0.1170927]
[1742893839225,0.09554,86735.0,86734.0,0.1170927]
[1742893849233,0.09554,86735.0,86734.0,0.1473927]
[1742893854835,0.09554,86735.0,86734.0,0.1799927]
[1742893863045,0.09554,86735.0,86734.0,0.1170927]
[1742893863246,0.2108314,86735.0,86734.0,0.1170927]
[1742893863455,0.115302,86727.0,86726.0,0.40797295]
[1742893863756,0.476102,86727.0,86726.0,0.00081295]
[1742893863957,0.476782,86727.0,86726.0,0.00081295]
[1742893864154,0.539282,86727.0,86726.0,0.00081295]
[1742893864555,0.178482,86727.0,86726.0,0.00081295]
[1742893864946,0.178482,86727.0,86726.0,0.11611625]
[1742893865863,0.178482,86727.0,86726.0,0.00081295]
[1742893866456,0.178482,86727.0,86726.0,0.00017295]
[1742893866658,0.178482,86727.0,86726.0,0.00077295]
[1742893867066,0.178482,86727.0,86726.0,0.11607625]
[1742893871266,0.209182,86727.0,86726.0,0.11607625]
[1742893883470,0.209182,86727.0,86726.0,0.00077295]
[1742893883678,0.209182,86727.0,86726.0,0.00017295]
[1742893883872,0.1153126,86719.0,86718.0,0.12678994]
[1742893884165,0.4767926,86719.0,86718.0,0.12738994]
[1742893884569,0.5718926,86719.0,86718.0,0.12738994]
[1742893884769,0.45658,86719.0,86718.0,0.12738994]
[1742893884969,0.42338,86719.0,86718.0,0.19138994]
[1742893885275,0.5396926,86719.0,86718.0,0.19138994]
[1742893886175,0.42438,86719.0,86718.0,0.19138994]
[1742893886974,0.5396926,86719.0,86718.0,0.19138994]
[1742893887174,0.5406926,86719.0,86718.0,0.19138994]
[1742893891981,0.42538,86719.0,86718.0,0.19138994]
[1742893892176,0.5406926,86719.0,86718.0,0.19138994]
[1742893901792,0.1798926,86719.0,86718.0,0.19138994]
[1742893913195,0.03298,86719.0,86718.0,0.19138994]
[1742893913391,0.03298,86719.0,86718.0,0.20138994]
[1742893913798,0.03298,86719.0,86718.0,1.70138994]
[1742893915402,0.11096,86742.0,86733.0,0.115294]
[1742893915596,0.36144,86734.0,86733.0,0.115974]
[1742893915798,0.36144,86734.0,86733.0,0.178274]
[1742893916000,0.36144,86734.0,86733.0,0.208274]
[1742893916499,0.4767327,86734.0,86733.0,0.208274]
[1742893916801,0.5390327,86734.0,86733.0,0.145974]
[1742893917000,0.5390327,86734.0,86733.0,0.242574]
[1742893917197,0.06294,86734.0,86733.0,0.242574]
[1742893917398,0.1782327,86734.0,86733.0,0.242574]
[1742893920304,0.06294,86734.0,86733.0,0.242574]
[1742893923915,0.0623,86734.0,86733.0,0.242574]
[1742893924208,0.06290001,86734.0,86733.0,0.242574]
[1742893927610,0.17819271,86734.0,86733.0,0.242574]
[1742893929402,0.17819271,86734.0,86733.0,0.210874]
[1742893933617,0.06290001,86734.0,86733.0,0.210874]
[1742893941111,0.0319,86749.0,86742.0,0.1152821]
[1742893941408,0.1152635,86756.0,86750.0,0.1152714]
[1742893941606,0.36140001,86751.0,86750.0,0.1158714]
[1742893941811,0.36140001,86751.0,86750.0,0.2117714]
[1742893942816,0.36140001,86751.0,86750.0,0.22334943]
[1742893943213,0.36140001,86751.0,86750.0,0.19144943]
[1742893943922,0.48167011,86751.0,86750.0,0.19144943]
[1742893944123,0.48167011,86751.0,86750.0,0.12744943]
[1742893944323,0.54547011,86751.0,86750.0,0.12744943]
[1742893944825,0.54547011,86751.0,86750.0,0.13624277]
[1742893945316,0.54747011,86751.0,86750.0,0.13624277]
[1742893945524,0.54647011,86751.0,86750.0,0.19884277]
[1742893946114,0.18567011,86751.0,86750.0,0.19884277]
[1742893947517,0.18567011,86751.0,86750.0,0.13624277]
[1742893949424,0.18567011,86751.0,86750.0,0.13564277]
[1742893949628,0.18567011,86751.0,86750.0,0.13624277]
[1742893949817,0.18567011,86751.0,86750.0,0.12466474]